bitfinex/quotes_SOLUSD_20220130
["timestamp","ask_amount","ask_price","bid_price","bid_amount"]
[1643583934936,0.08956394,93.647,93.562,0.25]
[1643583935139,1.48792244,93.646,93.562,0.25]
[1643583935337,1.48792244,93.644,93.562,0.25]
[1643583935837,1.48792244,93.646,93.562,0.25]
[1643583936237,1.48792244,93.645,93.562,0.25]
[1643583936637,1.48792244,93.646,93.563,2.42280091]
[1643583936839,0.08956394,93.647,93.563,2.42280091]
[1643583936840,0.08956394,93.647,93.564,0.25]
[1643583937038,0.08956394,93.647,93.563,2.42280091]
[1643583937236,0.08956394,93.647,93.561,107.7]
[1643583937237,0.08956394,93.647,93.565,2.42280091]
[1643583937441,0.08956394,93.647,93.57,16.032]
[1643583937644,0.08956394,93.647,93.571,107.7]
[1643583937841,0.08956394,93.647,93.571,110.12280091]
[1643583938041,0.08956394,93.647,93.571,107.7]
[1643583938241,0.08956394,93.647,93.572,2.42280091]
[1643583938440,0.08956394,93.647,93.572,2.67280091]
[1643583938641,0.08956394,93.647,93.582,6.0]
[1643583938843,0.08956394,93.647,93.583,107.95]
[1643583939044,0.08956394,93.647,93.593,6.0]
[1643583939246,0.08956394,93.647,93.594,107.7]
[1643583939443,0.08956394,93.647,93.601,107.7]
[1643583939643,0.08956394,93.647,93.61,28.861]
[1643583939870,0.08956394,93.647,93.611,6.25]
[1643583940070,1.48792244,93.705,93.621,113.7]
[1643583940277,0.98792244,93.705,93.63,12.84]
[1643583940469,0.98792244,93.705,93.638,0.30105753]
[1643583940672,0.98792244,93.723,93.66,16.016]
[1643583940869,2.97792125,93.749,93.661,0.25]
[1643583941074,0.5,93.785,93.661,0.25]
[1643583941075,2.97792125,93.762,93.661,0.25]
[1643583941274,2.97792125,93.762,93.673,0.31240454]
[1643583941472,2.97792125,93.804,93.707,0.31756303]
[1643583941672,2.97792125,93.824,93.716,0.31214738]
[1643583941870,2.97792125,93.85,93.72,15.4]
[1643583942075,4.47711084,93.877,93.73,6.0]
[1643583942076,2.97792125,93.852,93.73,6.0]
[1643583942270,2.97792125,93.857,93.76,15.997]
[1643583942470,2.97792125,93.865,93.774,0.31588863]
[1643583942774,2.94557291,93.886,93.8,0.30759368]
[1643583942970,0.32689536,93.899,93.8,11.53759368]
[1643583942971,0.82689536,93.899,93.8,11.53759368]
[1643583943177,0.82689536,93.899,93.8,26.93759368]
[1643583943371,0.82689536,93.899,93.81,21.99]
[1643583943570,0.82689536,93.899,93.811,6.0]
[1643583943771,0.82689536,93.899,93.82,15.4]
[1643583943972,0.82689536,93.899,93.82,28.94]
[1643583944174,0.82689536,93.899,93.821,0.25]
[1643583944371,0.82689536,93.899,93.821,2.67260049]
[1643583944572,0.82689536,93.899,93.83,15.984]
[1643583944772,0.82689536,93.899,93.83,31.384]
[1643583944972,0.82689536,93.899,93.831,2.42260049]
[1643583945173,0.82689536,93.899,93.722,5.0]
[1643583945373,2.95669142,93.894,93.75,192.45]
[1643583945572,0.82689536,93.899,93.75,15.4]
[1643583945873,6.53808552,93.893,93.75,15.4]
[1643583946274,15.4,93.89,93.73,68.727]
[1643583946472,6.0,93.883,93.73,68.727]
[1643583946675,6.0,93.883,93.741,107.7]
[1643583946876,15.4,93.88,93.741,107.7]
[1643583947073,0.5,93.879,93.741,107.7]
[1643583947274,1.36585289,93.88,93.741,107.7]
[1643583947879,0.5,93.889,93.742,0.25]
[1643583948176,0.5,93.898,93.742,0.25]
[1643583948375,0.5,93.898,93.75,15.999]
[1643583948575,15.23125644,93.899,93.76,6.0]
[1643583948777,3.11145401,93.894,93.76,6.0]
[1643583948975,0.12689536,93.899,93.76,6.0]
[1643583949475,0.12689536,93.899,93.76,22.59119466]
[1643583949876,0.12689536,93.899,93.761,107.7]
[1643583950276,0.12689536,93.899,93.762,0.25]
[1643583950479,0.12689536,93.899,93.771,6.0]
[1643583950676,0.12689536,93.899,93.771,18.94]
[1643583950878,0.12689536,93.899,93.772,6.25]
[1643583951080,0.12689536,93.899,93.79,15.992]
[1643583951278,0.12689536,93.899,93.791,0.25]
[1643583951679,0.12689536,93.899,93.79,15.992]
[1643583951881,0.12689536,93.899,93.791,107.95]
[1643583952082,0.12689536,93.899,93.79,15.992]
[1643583952983,0.12689536,93.899,93.77,12.81]
[1643583953180,0.12689536,93.899,93.771,0.25]
[1643583953380,0.12689536,93.899,93.78,6.0]
[1643583953780,0.62689536,93.899,93.781,0.25]
[1643583953982,0.62689536,93.899,93.783,107.7]
[1643583954381,0.62689536,93.899,93.793,6.0]
[1643583954882,0.62689536,93.899,93.794,107.95]
[1643583955181,0.62689536,93.899,93.794,0.25]
[1643583955882,0.62689536,93.899,93.784,0.25]
[1643583956684,14.80689536,93.899,93.78,12.81]
[1643583956885,0.5,93.898,93.764,17.57962569]
[1643583957085,6.0,93.889,93.76,12.81]
[1643583957285,6.0,93.889,93.744,17.57962569]
[1643583957485,12.81,93.88,93.744,17.57962569]
[1643583957686,0.5,93.879,93.745,0.25]
[1643583957884,3.45669142,93.879,93.745,0.25]
[1643583958085,17.39669142,93.879,93.745,0.25]
[1643583958289,0.5,93.878,93.751,107.7]
[1643583958485,0.5,93.879,93.751,107.7]
[1643583958686,6.0,93.889,93.752,17.82962569]
[1643583959087,6.0,93.889,93.754,107.7]
[1643583959288,0.62689536,93.899,93.762,6.0]
[1643583959485,0.62689536,93.899,93.77,12.81]
[1643583959687,6.0,93.89,93.77,12.81]
[1643583959885,6.0,93.89,93.771,107.95]
[1643583960087,6.0,93.89,93.771,125.52962569]
[1643583960287,0.62689536,93.899,93.772,17.57962569]
[1643583960585,0.62689536,93.899,93.78,15.994]
[1643583960785,0.62689536,93.899,93.781,0.25]
[1643583960992,0.62689536,93.899,93.781,17.82962569]
[1643583961187,0.62689536,93.899,93.782,17.57962569]
[1643583961491,0.62689536,93.899,93.79,15.992]
[1643583961686,0.62689536,93.899,93.792,6.0]
[1643583961890,0.62689536,93.899,93.8,6.0]
[1643583962089,0.62689536,93.899,93.81,12.81]
[1643583962387,0.62689536,93.899,93.832,0.32080091]
[1643583962587,4.47711084,94.017,93.832,0.32080091]
[1643583962588,12.81,93.97,93.857,0.31798599]
[1643583962888,184.73525079,94.007,93.879,0.30716666]
[1643583963088,184.73525079,94.007,93.909,0.30434008]
[1643583963289,27.80189601,94.084,93.909,11.43434008]
[1643583963491,12.81,94.07,93.91,31.48231615]
[1643583963688,12.81,94.07,93.936,0.30497198]
[1643583963893,27.80189601,94.084,93.936,9.7]
[1643583964093,0.11034752,94.086,93.946,6.0]
[1643583964290,0.11034752,94.086,93.95,12.81]
[1643583964596,0.11034752,94.086,93.974,0.31178292]
[1643583964789,0.00034752,94.086,93.99,15.954]
[1643583964997,0.00034752,94.086,93.999,0.31598323]
[1643583965189,0.00034752,94.086,94.024,0.31022249]
[1643583965588,0.00034752,94.086,94.024,13.39022249]
[1643583965790,0.00034752,94.086,94.025,2.66362382]
[1643583966026,0.00034752,94.086,94.034,6.0]
[1643583966192,0.00034752,94.086,94.035,6.0]
[1643583966394,0.00034752,94.086,94.04,6.0]
[1643583966791,0.22069504,94.086,94.041,0.25]
[1643583966992,0.00069504,94.086,94.041,0.25]
[1643583967992,0.00069504,94.086,94.051,0.30098046]
[1643583968294,0.00913232,94.095,94.081,0.32217033]
[1643583968496,1.14,94.28,94.101,0.08612888]
[1643583968497,0.5,94.249,94.101,0.08612888]
[1643583968695,0.4203955,94.248,94.101,13.32]
[1643583969092,0.4203955,94.248,94.111,6.0]
[1643583969293,7.77390214,94.285,94.112,52.9683889]
[1643583969294,0.4638387,94.273,94.112,52.9683889]
[1643583969492,0.4638387,94.273,94.112,0.25]
[1643583969696,0.4638387,94.273,94.122,6.0]
[1643583969894,0.4638387,94.273,94.123,0.25]
[1643583970094,0.4638387,94.273,94.13,6.0]
[1643583970293,0.4638387,94.273,94.13,18.81]
[1643583970495,0.4638387,94.273,94.133,6.0]
[1643583970799,0.4638387,94.273,94.13,12.81]
[1643583971396,0.4638387,94.273,94.101,13.32]
[1643583971397,0.4638387,94.273,94.11,12.81]
[1643583971597,0.4638387,94.273,94.12,6.0]
[1643583971795,0.4638387,94.273,94.11,12.81]
[1643583971995,0.4638387,94.273,94.072,17.37969249]
[1643583971996,0.32243046,94.252,94.072,17.37969249]
[1643583972300,12.81,94.25,94.04,12.81]
[1643583972494,12.81,94.25,93.962,21.0436]
[1643583972495,0.5,94.249,94.01,12.81]
[1643583972695,27.25101179,94.249,94.011,52.09544796]
[1643583972897,3.35969638,94.248,94.006,2.42430098]
[1643583973096,0.30838777,94.202,94.006,2.42430098]
[1643583973295,0.30838777,94.202,93.986,2.42430098]
[1643583973296,12.81,94.19,93.986,2.42430098]
[1643583973497,1.14,94.129,93.986,2.42430098]
[1643583973696,1.14,94.129,93.926,10.25334056]
[1643583973697,13.13,94.129,93.949,2.42430098]
[1643583973896,1.14,94.109,93.95,52.09544796]
[1643583974098,0.31782424,94.092,93.939,2.42430098]
[1643583974299,0.5,94.099,93.939,2.42430098]
[1643583974497,0.5,94.099,93.95,2.42430098]
[1643583974698,0.5,94.134,93.96,12.81]
[1643583974997,6.0,94.16,93.961,52.86423154]
[1643583975197,6.0,94.16,93.962,52.86423154]
[1643583975397,2.95669142,94.159,93.962,20.33287427]
[1643583975597,6.0,94.149,93.963,2.42430098]
[1643583975796,0.32252588,94.13,93.963,2.42430098]
[1643583976001,12.81,94.12,93.95,2.42430098]
[1643583976198,0.5,94.119,93.931,2.42430098]
[1643583976399,0.30654229,94.096,93.931,2.42430098]
[1643583976600,12.81,94.09,93.911,2.42430098]
[1643583976798,0.5,94.089,93.915,17.84646218]
[1643583977198,3.45669142,94.089,93.915,17.84646218]
[1643583977398,7.73271599,94.088,93.915,17.84646218]
[1643583977601,18.05610599,94.088,93.915,17.84646218]
[1643583977801,3.45669142,94.087,93.915,17.84646218]
[1643583978002,7.73271599,94.087,93.915,17.84646218]
[1643583978299,2.95669142,94.086,93.894,17.84646218]
[1643583978501,2.95669142,94.086,93.871,304.28921049]
[1643583978502,0.30191794,94.078,93.871,304.28921049]
[1643583978701,172.87,94.07,93.872,53.20705712]
[1643583978902,0.30923098,94.052,93.872,53.20705712]
[1643583979102,12.81,94.04,93.873,2.40882789]
[1643583979303,12.81,94.03,93.873,71.87685275]
[1643583979502,0.5,94.029,93.874,176.89870942]
[1643583979703,2.95669142,94.068,93.875,53.20705712]
[1643583979903,0.4,94.069,93.89,12.81]
[1643583980103,3.45669142,94.069,93.89,12.81]
[1643583980302,2.95669142,94.068,93.89,12.81]
[1643583980502,2.95669142,94.068,93.9,6.0]
[1643583980702,3.45669142,94.068,93.9,6.0]
[1643583980904,3.45669142,94.068,93.91,12.81]
[1643583981107,2.95669142,94.102,93.92,6.0]
[1643583981302,12.81,94.13,93.93,12.81]
[1643583981505,6.0,94.092,93.931,107.7]
[1643583981706,0.4,94.116,93.94,6.0]
[1643583981904,6.0,94.107,93.941,6.25]
[1643583982106,6.0,94.107,93.95,6.0]
[1643583982311,6.0,94.107,93.951,107.95]
[1643583982505,2.95669142,94.13,93.961,6.0]
[1643583982707,2.08147654,94.14,93.97,12.81]
[1643583982905,2.08147654,94.14,93.971,0.25]
[1643583983105,2.08147654,94.14,93.98,6.0]
[1643583983305,2.95669142,94.139,93.981,0.25]
[1643583983504,8.23271599,94.139,93.98,18.81]
[1643583983707,22.12271599,94.139,93.98,12.81]
[1643583983906,9.35004536,94.138,93.98,12.81]
[1643583984106,17.08276135,94.138,93.98,7.81]
[1643583984306,0.5,94.137,93.98,7.81]
[1643583984507,3.45669142,94.137,93.98,7.81]
[1643583984707,0.5,94.137,93.992,0.32217067]
[1643583984906,0.5,94.163,94.0,12.81]
[1643583985107,0.5,94.204,94.01,6.0]
[1643583985309,7.93261489,94.187,94.02,12.81]
[1643583985507,5.42419338,94.186,94.03,6.0]
[1643583985709,5.92419338,94.186,94.03,18.81]
[1643583985910,0.5,94.186,94.053,0.32420253]
[1643583986112,4.47711084,94.268,94.06,12.81]
[1643583986113,9.55204914,94.203,94.06,12.81]
[1643583986312,9.55204914,94.203,94.061,0.25]
[1643583986509,6.0,94.193,94.07,6.0]
[1643583986709,6.0,94.193,94.07,18.81]
[1643583987110,0.5,94.202,94.05,12.81]
[1643583987307,12.81,94.22,94.051,0.25]
[1643583987308,4.77602457,94.192,94.051,0.25]
[1643583987508,5.27602457,94.192,94.06,6.0]
[1643583988008,0.5,94.192,94.061,0.25]
[1643583988210,5.42419338,94.191,94.05,12.81]
[1643583988409,8.3808848,94.191,94.04,12.81]
[1643583988711,6.0,94.181,94.03,12.81]
[1643583989108,6.0,94.181,94.0,12.81]
[1643583989109,29.08252298,94.18,94.0,12.81]
[1643583989308,3.09734295,94.179,94.0,12.81]
[1643583989508,19.7292144,94.179,94.0,12.81]
[1643583989815,118.84175685,94.178,94.0,12.81]
[1643583990009,3.40904086,94.177,94.0,12.81]
[1643583990210,2.90904086,94.176,94.0,12.81]
[1643583990413,107.7,94.175,93.97,15.20843393]
[1643583990609,12.81,94.16,93.98,6.0]
[1643583990815,0.5,94.159,93.981,107.7]
[1643583991009,130.84004878,94.159,93.981,113.7]
[1643583991209,8.83323424,94.158,93.981,116.09843393]
[1643583991415,8.83323424,94.158,93.982,2.39843393]
[1643583991416,20.63997102,94.158,93.982,2.39843393]
[1643583991617,129.92261831,94.157,93.993,107.7]
[1643583991814,0.3,94.156,93.992,6.0]
[1643583992016,2.90904086,94.155,93.992,6.0]
[1643583992216,2.90904086,94.155,93.981,107.7]
[1643583992417,8.73323424,94.155,93.981,107.7]
[1643583992618,2.90904086,94.154,93.991,6.0]
[1643583992821,12.81,94.15,93.991,6.0]
[1643583993019,0.5,94.149,93.993,107.7]
[1643583993222,3.40904086,94.149,93.994,53.7326446]
[1643583993422,2.90904086,94.149,94.017,0.30355198]
[1643583993622,0.5,94.184,94.03,12.81]
[1643583993824,4.97711084,94.199,94.031,0.25]
[1643583994027,6.0,94.189,94.04,6.0]
[1643583994224,2.91857509,94.188,94.041,107.7]
[1643583994424,2.91857509,94.188,94.041,107.95]
[1643583994624,3.41857509,94.189,94.042,2.39664065]
[1643583994826,2.91857509,94.188,94.043,0.25]
[1643583995426,2.91857509,94.188,94.04,12.81]
[1643583995627,2.95669142,94.187,94.04,12.81]
[1643583995926,2.91857509,94.186,94.04,12.81]
[1643583996146,12.59336846,94.186,94.0,12.81]
[1643583996346,0.31591145,94.166,93.98,12.81]
[1643583996545,12.81,94.16,93.99,6.0]
[1643583996741,12.81,94.16,93.96,12.81]
[1643583996742,0.5,94.159,93.96,12.81]
[1643583996941,2.91857509,94.158,93.971,107.7]
[1643583997146,8.601783,94.158,93.981,6.0]
[1643583997441,110.61857509,94.157,93.981,6.0]
[1643583997643,6.0,94.148,93.982,6.0]
[1643583997843,107.7,94.139,93.982,6.0]
[1643583998043,3.41857509,94.138,93.991,6.0]
[1643583998243,0.5,94.138,93.991,6.0]
[1643583998443,0.5,94.138,93.992,0.25]
[1643583998744,0.5,94.138,93.993,6.0]
[1643583999147,0.5,94.138,93.994,107.95]
[1643583999343,5.8771923,94.137,93.993,6.0]
[1643583999548,2.92050088,94.136,93.992,6.0]
[1643583999745,15.17022691,94.136,93.992,6.0]
[1643583999946,3.45669142,94.135,93.973,6.0]
[1643584000147,107.7,94.134,93.973,6.0]
[1643584000346,12.81,94.12,93.971,6.0]
[1643584000548,3.42050088,94.119,93.961,107.7]
[1643584000748,2.92050088,94.118,93.938,17.9485844]
[1643584000948,3.42050088,94.118,93.939,107.7]
[1643584001149,2.92050088,94.117,93.939,107.7]
[1643584001347,15.17022691,94.117,93.938,17.9485844]
[1643584001549,3.45669142,94.116,93.938,17.9485844]
[1643584001749,0.31683056,94.094,93.915,16.86691341]
[1643584001949,12.81,94.08,93.89,12.81]
[1643584002147,111.12050088,94.079,93.893,2.38637842]
[1643584002349,3.42050088,94.078,93.894,0.25]
[1643584002549,6.0,94.069,93.896,107.7]
[1643584002748,12.81,94.06,93.897,51.90884302]
[1643584002948,3.42050088,94.059,93.898,107.7]
[1643584003149,2.92050088,94.058,93.899,51.90884302]
[1643584003548,2.92050088,94.058,93.89,12.81]
[1643584003549,5.8771923,94.058,93.886,107.7]
[1643584003748,2.95669142,94.057,93.886,107.7]
[1643584003948,2.92050088,94.056,93.88,12.81]
[1643584004149,2.92050088,94.056,93.865,12.75245787]
[1643584004351,2.92050088,94.056,93.866,53.04006193]
[1643584004551,2.95669142,94.055,93.865,10.36607945]
[1643584004848,2.92050088,94.054,93.865,10.36607945]
[1643584005051,12.81,94.04,93.846,10.36607945]
[1643584005247,12.81,94.04,93.84,15.55969119]
[1643584005248,0.30141647,94.016,93.84,15.55969119]
[1643584005450,12.81,94.01,93.826,10.36607945]
[1643584005651,3.43004261,94.009,93.8,12.81]
[1643584005848,20.64466397,94.009,93.78,12.81]
[1643584006048,6.38673403,94.008,93.79,15.55969119]
[1643584006250,110.63004261,94.007,93.79,15.55969119]
[1643584006448,0.31555197,93.984,93.8,6.0]
[1643584006648,12.81,93.97,93.8,6.0]
[1643584006849,0.4,93.969,93.8,6.0]
[1643584007050,0.4,93.969,93.79,15.55969119]
[1643584007051,111.05669142,93.969,93.79,15.55969119]
[1643584007248,0.4,93.968,93.778,2.38637842]
[1643584007449,8.23823266,93.968,93.778,2.38637842]
[1643584007650,2.95669142,93.967,93.778,2.38637842]
[1643584007851,20.17131278,93.967,93.788,6.0]
[1643584008050,7.46034891,93.966,93.788,6.0]
[1643584008251,7.46034891,93.966,93.778,2.38637842]
[1643584008252,0.32405239,93.958,93.778,2.38637842]
[1643584008450,0.32405239,93.958,93.712,0.12450174]
[1643584008451,0.31266492,93.921,93.715,107.7]
[1643584008650,0.31266492,93.921,93.772,6.0]
[1643584008651,12.81,93.91,93.772,6.0]
[1643584008853,0.4,93.909,93.725,6.0]
[1643584009051,111.05669142,93.909,93.73,6.0]
[1643584009252,111.05669142,93.909,93.72,13.14308772]
[1643584009253,6.08320791,93.908,93.72,13.14308772]
[1643584009452,9.03989933,93.908,93.72,13.14308772]
[1643584009653,2.95669142,93.907,93.72,13.14308772]
[1643584009852,2.95669142,93.907,93.73,12.81]
[1643584010052,12.81,93.91,93.778,2.12192085]
[1643584010251,160.06,94.0,93.778,2.12192085]
[1643584010452,12.81,93.93,93.778,2.12192085]
[1643584010754,12.81,93.93,93.751,2.37978999]
[1643584010958,12.81,93.93,93.751,42.78042844]
[1643584010959,10.01704033,93.929,93.751,42.78042844]
[1643584011156,42.07554923,93.929,93.734,2.37978999]
[1643584011355,42.07554923,93.929,93.735,42.53042844]
[1643584011356,2.95669142,93.928,93.735,42.53042844]
[1643584011558,38.98162569,93.928,93.736,42.53042844]
[1643584011755,16.22102854,93.927,93.725,6.0]
[1643584011956,36.38399758,93.927,93.726,107.7]
[1643584012164,6.0,93.917,93.736,6.0]
[1643584012357,12.81,93.91,93.738,360.03243154]
[1643584012556,12.81,93.91,93.748,6.0]
[1643584012955,2.95669142,93.909,93.748,6.0]
[1643584013156,2.95669142,93.909,93.749,116.07907573]
[1643584013357,2.95669142,93.909,93.75,0.1]
[1643584013558,12.81,93.91,93.75,8.72907573]
[1643584013757,12.81,93.91,93.759,6.0]
[1643584013969,12.81,93.91,93.76,107.7]
[1643584014160,12.81,93.91,93.761,0.1]
[1643584014358,2.95669142,93.934,93.762,107.7]
[1643584014558,160.06,94.0,93.794,0.30339719]
[1643584014760,0.1,94.009,93.8,12.81]
[1643584014761,12.81,93.99,93.8,12.81]
[1643584015058,12.81,93.98,93.801,0.1]
[1643584015260,12.81,93.97,93.795,0.25]
[1643584015459,0.3,93.969,93.795,0.25]
[1643584015659,6.0,93.96,93.795,0.25]
[1643584015862,12.81,93.95,93.784,6.0]
[1643584016060,12.81,93.95,93.771,0.1]
[1643584016061,0.3,93.949,93.78,6.0]
[1643584016262,17.51462136,93.949,93.78,6.0]
[1643584016463,0.3,93.948,93.826,0.32285499]
[1643584016864,2.95669142,93.976,93.826,0.32285499]
[1643584016865,10.15427245,93.969,93.826,0.32285499]
[1643584017064,0.3,93.968,93.826,0.32285499]
[1643584017268,7.06034891,93.982,93.822,0.25]
[1643584017571,0.3,93.999,93.821,6.0]
[1643584017572,2.95669142,93.967,93.821,6.0]
[1643584017765,12.81,93.96,93.82,6.0]
[1643584017965,0.3,93.959,93.8,6.0]
[1643584018166,3.25669142,93.959,93.784,0.1]
[1643584018366,22.82560704,93.958,93.784,0.1]
[1643584018565,0.3,93.957,93.784,0.1]
[1643584018765,10.31704033,93.957,93.784,0.1]
[1643584018965,108.0,93.956,93.793,6.0]
[1643584019165,12.81,93.95,93.793,6.0]
[1643584019365,6.0,93.946,93.784,0.1]
[1643584019768,6.0,93.946,93.793,6.0]
[1643584019968,2.95669142,93.945,93.784,0.1]
[1643584020169,12.81,93.93,93.784,0.1]
[1643584020468,0.3,93.929,93.784,0.1]
[1643584020667,3.25669142,93.929,93.784,0.1]
[1643584021171,2.95669142,93.928,93.784,0.1]
[1643584021369,0.3,93.929,93.785,2.37464484]
[1643584021670,0.3,93.929,93.776,6.0]
[1643584021869,0.3,93.929,93.777,0.25]
[1643584022069,2.95669142,93.928,93.777,0.25]
[1643584022305,10.01704033,93.928,93.777,0.25]
[1643584022473,0.3,93.927,93.777,0.25]
[1643584022670,0.3,93.929,93.777,0.25]
[1643584022871,0.3,93.929,93.778,2.37464484]
[1643584023073,0.3,93.929,93.788,6.0]
[1643584023271,0.3,93.929,93.789,0.25]
[1643584024573,0.3,93.929,93.777,0.25]
[1643584024977,0.3,93.929,93.777,2.62464484]
[1643584025377,0.3,93.929,93.787,6.0]
[1643584025576,0.3,93.929,93.788,6.0]
[1643584025777,2.95669142,93.928,93.788,0.1]
[1643584026081,17.21462136,93.927,93.773,6.0]
[1643584026276,0.3,93.926,93.773,6.0]
[1643584026477,6.0,93.917,93.72,0.33308772]
[1643584026676,12.81,93.91,93.72,0.33308772]
[1643584026879,0.3,93.909,93.721,16.55469551]
[1643584027077,0.3,93.909,93.722,0.1]
[1643584027382,0.3,93.909,93.723,16.55469551]
[1643584027577,0.3,93.909,93.734,107.7]
[1643584027778,0.3,93.909,93.735,26.7869903]
[1643584027978,7.36034891,93.909,93.744,6.0]
[1643584028179,107.7,93.908,93.745,6.0]
[1643584028379,0.3,93.907,93.746,0.25]
[1643584028780,12.45466793,93.906,93.746,0.25]
[1643584028980,0.3,93.905,93.746,0.25]
[1643584029383,120.15466793,93.904,93.746,0.25]
[1643584029581,12.81,93.89,93.735,0.35]
[1643584029808,0.3,93.889,93.735,0.1]
[1643584030009,0.3,93.889,93.735,16.30743198]
[1643584030206,0.3,93.889,93.736,0.1]
[1643584030406,0.3,93.889,93.736,6.58934865]
[1643584030606,0.3,93.889,93.736,6.48934865]
[1643584030807,0.3,93.889,93.735,0.1]
[1643584031108,108.0,93.889,93.735,6.58934865]
[1643584031409,0.3,93.888,93.744,6.0]
[1643584031606,14.17,93.888,93.737,0.1]
[1643584031806,0.3,93.887,93.737,0.1]
[1643584032006,0.3,93.887,93.724,0.1]
[1643584032207,7.36869265,93.887,93.724,0.1]
[1643584032412,10.14592871,93.886,93.72,0.33308772]
[1643584032619,0.3,93.885,93.72,0.33308772]
[1643584033006,15.54024773,93.884,93.72,0.33308772]
[1643584033208,12.81,93.87,93.72,0.33308772]
[1643584033407,0.3,93.869,93.72,0.33308772]
[1643584033609,6.0,93.86,93.72,0.33308772]
[1643584033810,12.81,93.85,93.72,0.33308772]
[1643584034008,0.3,93.849,93.72,0.33308772]
[1643584034212,108.0,93.849,93.72,0.33308772]
[1643584034409,0.1,93.848,93.72,0.33308772]
[1643584034613,0.3,93.848,93.72,0.33308772]
[1643584036817,7.06034891,93.847,93.72,0.33308772]
[1643584037014,6.0,93.837,93.72,0.33308772]
[1643584037315,12.81,93.83,93.72,0.33308772]
[1643584037515,0.3,93.829,93.72,0.33308772]
[1643584038317,108.0,93.829,93.72,0.33308772]
[1643584038515,0.3,93.828,93.72,0.33308772]
[1643584039315,10.45427245,93.828,93.72,0.33308772]
[1643584039517,7.36034891,93.827,93.72,0.33308772]
[1643584039916,107.7,93.825,93.72,0.33308772]
[1643584040118,0.3,93.824,93.72,0.33308772]
[1643584040320,12.81,93.81,93.72,0.33308772]
[1643584040517,108.0,93.809,93.72,0.33308772]
[1643584040718,0.3,93.808,93.72,0.33308772]
[1643584042421,8.01007316,93.808,93.72,0.33308772]
[1643584042619,6.0,93.799,93.72,0.33308772]
[1643584042823,107.7,93.789,93.72,0.33308772]
[1643584043022,8.01007316,93.788,93.72,0.33308772]
[1643584043720,0.3,93.788,93.72,0.33308772]
[1643584043920,8.01007316,93.788,93.72,0.33308772]
[1643584044121,8.01007316,93.788,93.712,0.24900348]
[1643584044122,23.70676458,93.788,93.712,0.24900348]
[1643584044323,126.23318283,93.787,93.712,0.24900348]
[1643584044524,18.53318283,93.786,93.712,0.24900348]
[1643584044722,0.3,93.785,93.712,0.24900348]
[1643584044924,107.7,93.769,93.712,0.24900348]
[1643584045124,18.53318283,93.768,93.712,0.24900348]
[1643584045326,0.3,93.767,93.712,0.24900348]
[1643584045527,18.53318283,93.767,93.712,0.24900348]
[1643584045724,0.3,93.766,93.712,0.24900348]
[1643584045925,126.23318283,93.766,93.712,0.24900348]
[1643584046225,18.53318283,93.765,93.712,0.24900348]
[1643584046425,0.3,93.764,93.712,0.24900348]
[1643584046624,12.81,93.76,93.712,0.24900348]
[1643584046825,0.3,93.759,93.712,0.24900348]
[1643584047025,18.41022169,93.758,93.712,0.24900348]
[1643584047224,0.3,93.757,93.712,0.24900348]
[1643584047431,0.3,93.759,93.712,0.24900348]
[1643584047928,0.2,93.759,93.712,0.24900348]
[1643584048125,0.3,93.765,93.712,0.24900348]
[1643584048326,12.81,93.76,93.712,0.24900348]
[1643584048526,0.3,93.759,93.712,0.24900348]